lending/lending_fUSD_20250808
["ID","MTS","AMOUNT","RATE_DAILY","PERIOD"]
[378019580,1754669481360,-4624.2,0.00019492,2]
[378019581,1754669481370,-400.0,0.00019492,2]
[378019582,1754669481379,-1458.34,0.00019492,2]
[378019583,1754669481388,-1220.89,0.00019492,2]
[378019584,1754669481399,-422.1,0.00019492,2]
[378019585,1754669481408,-686.63,0.00019492,2]
[378019586,1754669481419,-1283.29,0.00019492,2]
[378019587,1754669481429,-1271.52,0.00019492,2]
[378019588,1754669481439,-227.2,0.00019492,2]
[378019589,1754669481449,-400.0,0.00019492,2]
[378019590,1754669481460,-1531.74,0.00019492,2]
[378019591,1754669481469,-1320.06,0.00019492,2]
[378019592,1754669481478,-466.82,0.00019492,2]
[378019593,1754669481489,-1421.75,0.00019492,2]
[378019594,1754669481499,-455.48,0.00019492,2]
[378019595,1754669481509,-894.63,0.00019492,2]
[378019596,1754669481518,-400.0,0.00019492,2]
[378019597,1754669481528,-400.0,0.00019492,2]
[378019598,1754669481538,-995.6,0.00019492,2]
[378019599,1754669481548,-400.0,0.00019492,2]
[378019600,1754669481557,-675.46,0.00019492,2]
[378019601,1754669481567,-943.62,0.00019492,2]
[378019602,1754669481576,-3181.7,0.00019492,2]
[378019603,1754669481585,-400.0,0.00019492,2]
[378019604,1754669481595,-577.69,0.00019492,2]
[378019605,1754669481604,-400.0,0.00019492,2]
[378019606,1754669481614,-474.82,0.00019492,2]
[378019607,1754669481624,-3907.01,0.00019492,2]
[378019608,1754669481634,-400.0,0.00019492,2]
[378019609,1754669481643,-400.0,0.00019492,2]
[378019610,1754669481652,-447.25,0.00019492,2]
[378019611,1754669481662,-4881.55,0.00019492,2]
[378019612,1754669481671,-400.0,0.00019492,2]
[378019613,1754669481680,-400.0,0.00019492,2]
[378019614,1754669481690,-3961.85,0.00019492,2]
[378019615,1754669481703,-607.19,0.00019492,2]
[378019616,1754669481712,-1995.27,0.00019492,2]
[378019617,1754669481721,-400.0,0.00019492,2]
[378019618,1754669481731,-400.0,0.00019492,2]
[378019619,1754669481741,-1748.15,0.00019492,2]
[378019620,1754669481751,-2151.79,0.00019492,2]
[378019621,1754669481760,-151.0,0.00019492,2]
[378019622,1754669481771,-1071.34,0.00019492,2]
[378019623,1754669481781,-5556.86,0.00019492,2]
[378019624,1754669481792,-776.47,0.00019492,2]
[378019625,1754669481801,-4368.67,0.00019492,2]
[378019626,1754669481810,-400.0,0.00019492,2]
[378019627,1754669481820,-455.24,0.00019492,2]
[378019628,1754669481829,-400.0,0.00019492,2]
[378019629,1754669481838,-454.28,0.00019492,2]
[378019630,1754669481848,-400.0,0.00019492,2]
[378019631,1754669481857,-572.22,0.00019492,2]
[378019632,1754669481867,-1655.65,0.00019492,2]
[378019633,1754669481877,-552.11,0.00019492,2]
[378019634,1754669481886,-5326.54,0.00019492,2]
[378019635,1754669481895,-1353.03,0.00019492,2]
[378019636,1754669481906,-400.0,0.00019492,2]
[378019637,1754669481916,-400.0,0.00019492,2]
[378019638,1754669481925,-1787.09,0.00019492,2]
[378019639,1754669481935,-400.0,0.00019492,2]
[378019640,1754669481944,-437.4,0.00019492,2]
[378019641,1754669481955,-1818.29,0.00019492,2]
[378019642,1754669481965,-448.37,0.00019492,2]
[378019643,1754669481974,-400.0,0.00019492,2]
[378019644,1754669481984,-1169.93,0.00019492,2]
[378019645,1754669481994,-3083.31,0.00019492,2]
[378019646,1754669482008,-2127.79,0.00019492,2]
[378019647,1754669482026,-509.83,0.00019492,2]
[378019648,1754669482035,-400.0,0.00019492,2]
[378019649,1754669482045,-400.0,0.00019492,2]
[378019650,1754669482066,-836.42,0.00019492,2]
[378019651,1754669482076,-740.05,0.00019492,2]
[378019652,1754669482086,-1017.06,0.00019492,2]
[378019653,1754669482096,-400.0,0.00019492,2]
[378019654,1754669482106,-3318.81,0.00019492,2]
[378019655,1754669482116,-1132.27,0.00019492,2]
[378019656,1754669482127,-1001.22,0.00019492,2]
[378019657,1754669482136,-501.43,0.00019492,2]
[378019658,1754669482146,-633.86,0.00019492,2]
[378019659,1754669482156,-471.36,0.00019492,2]
[378019660,1754669482166,-862.04,0.00019492,2]
[378019661,1754669482176,-1748.49,0.00019492,2]
[378019662,1754669482185,-400.0,0.00019492,2]
[378019663,1754669482194,-2373.25,0.00019492,2]
[378019664,1754669482207,-1280.13,0.00019492,2]
[378019665,1754669482216,-1010.24,0.00019492,2]
[378019666,1754669482225,-151.0,0.00019492,2]
[378019667,1754669482235,-1499.55,0.00019492,2]
[378019668,1754669482244,-1166.4,0.00019492,2]
[378019669,1754669482254,-660.66,0.00019492,2]
[378019670,1754669482263,-7523.23,0.00019492,2]
[378019671,1754669482272,-1342.86,0.00019492,2]
[378019672,1754669482282,-400.0,0.00019492,2]
[378019673,1754669482291,-439.65,0.00019492,2]
[378019674,1754669482300,-591.38,0.00019492,2]
[378019675,1754669482309,-1524.08,0.00019492,2]
[378019676,1754669482318,-324.47453239,0.00019492,2]
[378019677,1754669482327,-809.05,0.00019492,2]
[378019678,1754669482337,-400.0,0.00019492,2]
[378019679,1754669482346,-5829.92,0.00019492,2]
[378019680,1754669482355,-1761.37,0.00019492,2]
[378019681,1754669482364,-1610.05,0.00019492,2]
[378019682,1754669482373,-755.11,0.00019492,2]
[378019683,1754669482383,-643.37,0.00019492,2]
[378019684,1754669482392,-151.0,0.00019492,2]
[378019685,1754669482401,-764.46,0.00019492,2]
[378019686,1754669482410,-985.59,0.00019492,2]
[378019687,1754669482420,-4533.75,0.00019492,2]
[378019688,1754669482429,-543.79,0.00019492,2]
[378019689,1754669482438,-1461.07,0.00019492,2]
[378019690,1754669482447,-577.86,0.00019492,2]
[378019691,1754669482458,-1394.99,0.00019492,2]
[378019692,1754669482467,-3292.99,0.00019492,2]
[378019693,1754669482476,-745.45,0.00019492,2]
[378019694,1754669482485,-630.01,0.00019492,2]
[378019695,1754669482495,-591.75,0.00019492,2]
[378019696,1754669482503,-400.0,0.00019492,2]
[378019697,1754669482512,-214.539641,0.00019492,2]
[378019698,1754669482521,-400.0,0.00019492,2]
[378019699,1754669482531,-571.59,0.00019492,2]
[378019700,1754669482540,-1230.51,0.00019492,2]
[378019701,1754669482550,-1458.03,0.00019492,2]
[378019702,1754669482559,-922.39,0.00019492,2]
[378019703,1754669482568,-5116.24,0.00019492,2]
[378019704,1754669482578,-400.0,0.00019492,2]
[378019705,1754669482588,-214.539641,0.00019492,2]
[378019706,1754669482597,-1077.25,0.00019492,2]
[378019707,1754669482606,-888.02,0.00019492,2]
[378019708,1754669482615,-1973.55,0.00019492,2]
[378019709,1754669482624,-1296.8,0.00019492,2]
[378019710,1754669482633,-400.0,0.00019492,2]
[378019711,1754669482642,-510.38,0.00019492,2]
[378019712,1754669482652,-1075.57,0.00019492,2]
[378019713,1754669482661,-572.6,0.00019492,2]
[378019714,1754669482670,-638.9,0.00019492,2]
[378019715,1754669482679,-5597.06,0.00019492,2]
[378019716,1754669482689,-400.0,0.00019492,2]
[378019717,1754669482702,-450.68,0.00019492,2]
[378019718,1754669482711,-533.21,0.00019492,2]
[378019719,1754669482721,-663.4,0.00019492,2]
[378019720,1754669482730,-151.0,0.00019492,2]
[378019721,1754669482740,-3288.41,0.00019492,2]
[378019722,1754669482750,-400.0,0.00019492,2]
[378019723,1754669482759,-3790.94,0.00019492,2]
[378019724,1754669482769,-3195.32,0.00019492,2]
[378019725,1754669482779,-526.43,0.00019492,2]
[378019726,1754669482789,-410.16,0.00019492,2]
[378019727,1754669482798,-151.0,0.00019493,2]
[378019728,1754669482808,-151.0,0.00019493,2]
[378019729,1754669482818,-151.0,0.00019493,2]
[378019730,1754669482827,-151.0,0.00019493,2]
[378019731,1754669482836,-151.0,0.00019493,2]
[378019732,1754669482846,-151.0,0.00019493,2]
[378019733,1754669482855,-151.0,0.00019493,2]
[378019734,1754669482865,-151.0,0.00019493,2]
[378019735,1754669482874,-151.0,0.00019493,2]
[378019736,1754669482883,-400.0,0.00019493,2]
[378019737,1754669482892,-400.0,0.00019493,2]
[378019738,1754669482902,-408.84,0.00019493,2]
[378019739,1754669482910,-151.0,0.00019493,2]
[378019740,1754669482920,-400.0,0.00019493,2]
[378019741,1754669482929,-400.0,0.00019493,2]
[378019742,1754669482938,-400.0,0.00019493,2]
[378019743,1754669482947,-400.0,0.00019493,2]
[378019744,1754669482957,-520.89,0.00019493,2]
[378019745,1754669482966,-400.0,0.00019493,2]
[378019746,1754669482976,-578.65,0.00019493,2]
[378019747,1754669482985,-400.0,0.00019493,2]
[378019748,1754669482994,-400.0,0.00019493,2]
[378019749,1754669483003,-400.0,0.00019493,2]
[378019750,1754669483012,-400.0,0.00019493,2]
[378019751,1754669483021,-438.64,0.00019493,2]
[378019752,1754669483030,-400.0,0.00019493,2]
[378019753,1754669483039,-400.0,0.00019493,2]
[378019754,1754669483048,-431.02,0.00019493,2]
[378019755,1754669483058,-453.32,0.00019493,2]
[378019756,1754669483067,-528.12,0.00019493,2]
[378019757,1754669483077,-400.0,0.00019493,2]
[378019758,1754669483086,-400.0,0.00019493,2]
[378019759,1754669483095,-151.0,0.00019493,2]
[378019760,1754669483104,-400.0,0.00019493,2]
[378019761,1754669483113,-414.55,0.00019493,2]
[378019762,1754669483122,-501.96,0.00019493,2]
[378019763,1754669483131,-502.35,0.00019493,2]
[378019764,1754669483140,-400.0,0.00019493,2]
[378019765,1754669483149,-400.0,0.00019493,2]
[378019766,1754669483158,-400.0,0.00019493,2]
[378019767,1754669483167,-400.0,0.00019493,2]
[378019768,1754669483176,-400.0,0.00019493,2]
[378019769,1754669483185,-537.65,0.00019493,2]
[378019770,1754669483195,-479.91779269,0.00019493,2]
[378019771,1754669483204,-436.33,0.00019493,2]
[378019772,1754669483212,-400.0,0.00019493,2]
[378019773,1754669483222,-579.55,0.00019493,2]
[378019774,1754669483231,-400.0,0.00019493,2]
[378019775,1754669483240,-151.0,0.00019493,2]
[378019776,1754669483250,-400.0,0.00019493,2]
[378019777,1754669483259,-400.0,0.00019493,2]
[378019778,1754669483268,-151.0,0.00019493,2]
[378019779,1754669483277,-400.0,0.00019493,2]
[378019780,1754669483287,-400.0,0.00019493,2]
[378019781,1754669483296,-178.508048,0.00019493,2]
[378019782,1754669483306,-400.0,0.00019493,2]
[378019783,1754669483315,-400.0,0.00019493,2]
[378019784,1754669483324,-662.47,0.00019493,2]
[378019785,1754669483333,-458.85,0.00019493,2]
[378019786,1754669483342,-400.0,0.00019493,2]
[378019787,1754669483351,-400.0,0.00019493,2]
[378019788,1754669483360,-400.0,0.00019493,2]
[378019789,1754669483370,-400.0,0.00019493,2]
[378019790,1754669483379,-400.0,0.00019493,2]
[378019791,1754669483389,-541.05968501,0.00019493,2]
[378019792,1754669483398,-400.0,0.00019493,2]
[378019793,1754669483407,-433.69,0.00019493,2]
[378019794,1754669483416,-400.0,0.00019493,2]
[378019795,1754669483425,-400.0,0.00019493,2]
[378019796,1754669483435,-547.84,0.00019493,2]
[378019797,1754669483444,-400.0,0.00019493,2]
[378019798,1754669483455,-400.0,0.00019493,2]
[378019799,1754669483465,-400.0,0.00019493,2]
[378019800,1754669483474,-1483.89,0.00019493,2]
[378019801,1754669483484,-226.685624,0.00019493,2]
[378019802,1754669483493,-226.685624,0.00019493,2]
[378019803,1754669483502,-452.85,0.00019493,2]
[378019804,1754669483511,-181.743336,0.00019493,2]
[378019805,1754669483520,-181.743336,0.00019493,2]
[378019806,1754669483529,-151.0,0.00019493,2]
[378019807,1754669483538,-151.0,0.00019493,2]
[378019808,1754669483548,-518.62,0.00019493,2]
[378019809,1754669483565,-408.77,0.00019493,2]
[378019810,1754669483576,-400.0,0.00019493,2]
[378019811,1754669483586,-400.0,0.00019493,2]
[378019812,1754669483601,-419.4,0.00019493,2]
[378019813,1754669483610,-400.0,0.00019493,2]
[378019814,1754669483619,-400.0,0.00019493,2]
[378019815,1754669483629,-400.0,0.00019493,2]
[378019816,1754669483638,-300.0,0.00019493,2]
[378019817,1754669483648,-400.0,0.00019493,2]
[378019818,1754669483658,-5082.64,0.00019493,2]
[378019819,1754669483667,-493.26,0.00019493,2]
[378019820,1754669483677,-526.3,0.00019493,2]
[378019821,1754669483687,-1574.43,0.00019493,2]
[378019822,1754669483697,-400.0,0.00019493,2]
[378019823,1754669483711,-470.32,0.00019493,2]
[378019824,1754669483720,-499.17,0.00019493,2]
[378019825,1754669483730,-400.0,0.00019493,2]
[378019826,1754669483740,-1383.82,0.00019493,2]
[378019827,1754669483749,-489.28,0.00019493,2]
[378019828,1754669483759,-865.71,0.00019493,2]
[378019829,1754669483768,-400.0,0.00019493,2]
[378019830,1754669483778,-763.19,0.00019493,2]
[378019831,1754669483787,-436.71,0.00019493,2]
[378019832,1754669483797,-1642.57,0.00019493,2]
[378019833,1754669483806,-414.27,0.00019493,2]
[378019834,1754669483816,-582.35,0.00019493,2]
[378019835,1754669483825,-400.0,0.00019493,2]
[378019836,1754669483835,-502.3,0.00019493,2]
[378019837,1754669483845,-400.0,0.00019493,2]
[378019838,1754669483854,-554.21,0.00019493,2]
[378019839,1754669483864,-536.27,0.00019493,2]
[378019840,1754669483874,-400.0,0.00019493,2]
[378019841,1754669483883,-400.0,0.00019493,2]
[378019842,1754669483893,-438.89,0.00019493,2]
[378019843,1754669483902,-760.61,0.00019493,2]
[378019844,1754669483912,-1278.86,0.00019493,2]
[378019845,1754669483922,-772.31,0.00019493,2]
[378019846,1754669483931,-400.0,0.00019493,2]
[378019847,1754669483940,-400.0,0.00019493,2]
[378019848,1754669483950,-3084.06,0.00019493,2]
[378019849,1754669483961,-400.0,0.00019493,2]
[378019850,1754669483970,-534.26,0.00019493,2]
[378019851,1754669483980,-537.01,0.00019493,2]
[378019852,1754669483989,-151.0,0.00019493,2]
[378019853,1754669483999,-400.0,0.00019493,2]
[378019854,1754669484008,-400.0,0.00019493,2]
[378019855,1754669484017,-693.11,0.00019493,2]
[378019856,1754669484216,-400.0,0.00019493,2]
[378019857,1754669484227,-11768.25,0.00019493,2]
[378019858,1754669484238,-400.0,0.00019493,2]
[378019859,1754669484247,-412.67,0.00019493,2]
[378019860,1754669484257,-400.0,0.00019493,2]
[378019861,1754669484267,-247.952829,0.00019493,2]
[378019862,1754669484277,-400.0,0.00019493,2]
[378019863,1754669484286,-400.0,0.00019493,2]
[378019864,1754669484296,-151.0,0.00019493,2]
[378019865,1754669484305,-247.952829,0.00019493,2]
[378019866,1754669484315,-400.0,0.00019493,2]
[378019867,1754669484324,-151.0,0.00019493,2]
[378019868,1754669484334,-400.0,0.00019493,2]
[378019869,1754669484343,-400.0,0.00019493,2]
[378019870,1754669484353,-548.19,0.00019493,2]
[378019871,1754669484364,-400.0,0.00019493,2]
[378019872,1754669484373,-842.93,0.00019493,2]
[378019873,1754669484383,-400.0,0.00019493,2]
[378019874,1754669484392,-593.89,0.00019493,2]
[378019875,1754669484401,-2566.79,0.00019493,2]
[378019876,1754669484410,-1773.58,0.00019493,2]
[378019877,1754669484420,-181.37418698,0.00019493,2]
[378019878,1754669484429,-151.0,0.00019497,2]
[378019879,1754669484438,-151.0,0.00019497,2]
[378019880,1754669484447,-151.0,0.00019497,2]
[378019881,1754669484457,-151.0,0.00019497,2]
[378019882,1754669484467,-151.0,0.00019497,2]
[378019883,1754669484476,-151.0,0.00019497,2]
[378019884,1754669484486,-151.0,0.00019497,2]
[378019885,1754669484495,-151.0,0.00019497,2]
[378019886,1754669484505,-151.0,0.00019497,2]
[378019887,1754669484514,-151.0,0.00019497,2]
[378019888,1754669484523,-151.0,0.00019497,2]
[378019889,1754669484533,-151.0,0.00019497,2]
[378019890,1754669484542,-151.0,0.00019497,2]
[378019891,1754669484551,-151.0,0.00019497,2]
[378019892,1754669484560,-151.0,0.00019497,2]
[378019893,1754669484569,-231.73649548,0.00019497,2]
[378019894,1754669484578,-776.0,0.000195,2]
[378019895,1754669484587,-240.0,0.000195,2]
[378019896,1754669484598,-379.0,0.000195,2]
[378019897,1754669484607,-1000.0,0.0001951,2]
[378019898,1754669484617,-1000.0,0.00019521,2]
[378019899,1754669484626,-176.27,0.00019523,2]
[378019900,1754669484635,-228.5,0.00019535,2]
[378019901,1754669484645,-168.0,0.00019539,2]
[378019902,1754669484654,-168.0,0.00019566,2]
[378019903,1754669484664,-500.0,0.00019573,2]
[378019904,1754669484674,-151.0,0.00019578,2]
[378019905,1754669484683,-151.0,0.00019578,2]
[378019906,1754669484693,-151.0,0.00019578,2]
[378019907,1754669484707,-151.0,0.00019578,2]
[378019908,1754669484716,-1002.257171,0.00019578,2]
[378019909,1754669484727,-1002.257171,0.00019578,2]
[378019910,1754669484736,-9725.7033044,0.00019579,2]
[378019911,1754669484746,-918.3276405,0.00019579,2]
[378019912,1754669484757,-41041.9773366,0.00019579,2]
[378019913,1754669484767,-112293.0642092,0.00019579,2]
[378019914,1754669484778,-11233.6822719,0.00019579,2]
[378019915,1754669484787,-151.0,0.00019581,2]
[378019916,1754669484797,-151.0,0.00019591,2]
[378019917,1754669484807,-151.0,0.00019591,2]
[378019918,1754669484816,-172.259748,0.00019591,2]
[378019919,1754669484826,-172.259748,0.00019591,2]
[378019920,1754669484836,-151.0,0.00019591,2]
[378019921,1754669484846,-791.36,0.00019591,2]
[378019922,1754669484855,-400.0,0.00019591,2]
[378019923,1754669484864,-400.0,0.00019591,2]
[378019924,1754669484875,-400.0,0.00019591,2]
[378019925,1754669484884,-472.99,0.00019591,2]
[378019926,1754669484894,-400.0,0.00019591,2]
[378019927,1754669484903,-400.0,0.00019591,2]
[378019928,1754669484914,-151.0,0.00019591,2]
[378019929,1754669484924,-662.74,0.00019591,2]
[378019930,1754669484934,-1562.64,0.00019591,2]
[378019931,1754669484944,-1278.69,0.00019591,2]
[378019932,1754669484953,-507.46,0.00019591,2]
[378019933,1754669484962,-471.7,0.00019591,2]
[378019934,1754669484971,-628.16,0.00019591,2]
[378019935,1754669484981,-415.57,0.00019591,2]
[378019936,1754669484991,-400.0,0.00019591,2]
[378019937,1754669484999,-940.95,0.00019591,2]
[378019938,1754669485010,-637.49,0.00019591,2]
[378019939,1754669485020,-1520.75,0.00019591,2]
[378019940,1754669485030,-400.0,0.00019591,2]
[378019941,1754669485040,-1243.34,0.00019591,2]
[378019942,1754669485049,-553.09,0.00019591,2]
[378019943,1754669485058,-814.08,0.00019591,2]
[378019944,1754669485068,-808.04,0.00019591,2]
[378019945,1754669485077,-457.87,0.00019591,2]
[378019946,1754669485086,-1105.64,0.00019591,2]
[378019947,1754669485095,-584.06,0.00019591,2]
[378019948,1754669485105,-400.0,0.00019591,2]
[378019949,1754669485115,-630.82,0.00019591,2]
[378019950,1754669485125,-400.0,0.00019591,2]
[378019951,1754669485134,-491.37,0.00019591,2]
[378019952,1754669485144,-423.21,0.00019591,2]
[378019953,1754669485154,-1250.67,0.00019591,2]
[378019954,1754669485165,-1281.81,0.00019591,2]
[378019955,1754669485175,-400.0,0.00019591,2]
[378019956,1754669485189,-400.0,0.00019591,2]
[378019957,1754669485201,-1423.91,0.00019591,2]
[378019958,1754669485217,-400.0,0.00019591,2]
[378019959,1754669485227,-1446.64,0.00019591,2]
[378019960,1754669485237,-441.0,0.00019591,2]
[378019961,1754669485247,-452.32,0.00019591,2]
[378019962,1754669485256,-579.16,0.00019592,2]
[378019963,1754669485266,-151.0,0.00019593,2]
[378019964,1754669485276,-151.0,0.00019593,2]
[378019965,1754669485286,-227.14415,0.00019593,2]
[378019966,1754669485295,-151.0,0.00019593,2]
[378019967,1754669485305,-151.0,0.00019593,2]
[378019968,1754669485314,-170.454556,0.00019593,2]
[378019969,1754669485324,-241.581924,0.00019593,2]
[378019970,1754669485333,-241.581924,0.00019593,2]
[378019971,1754669485343,-297.596359,0.00019593,2]
[378019972,1754669485353,-297.596359,0.00019593,2]
[378019973,1754669485363,-792.81,0.00019593,2]
[378019974,1754669485373,-3793.3,0.00019593,2]
[378019975,1754669485383,-451.66,0.00019593,2]
[378019976,1754669485400,-400.0,0.00019593,2]
[378019977,1754669485413,-579.16,0.00019593,2]
[378019978,1754669485422,-579.16,0.00019593,2]
[378019979,1754669485432,-579.16,0.00019593,2]
[378019980,1754669485443,-579.16,0.00019593,2]
[378019981,1754669485452,-579.19,0.00019593,2]
[378019982,1754669485463,-400.0,0.00019593,2]
[378019983,1754669485472,-2754.9,0.00019593,2]
[378019984,1754669485482,-1320.5,0.00019593,2]
[378019985,1754669485491,-3846.14,0.00019593,2]
[378019986,1754669485501,-4806.2,0.00019593,2]
[378019987,1754669485511,-1000.0,0.00019593,2]
[378019988,1754669485521,-2134.23,0.00019593,2]
[378019989,1754669485530,-3166.04,0.00019593,2]
[378019990,1754669485540,-2847.9,0.00019593,2]
[378019991,1754669485550,-9097.8,0.00019593,2]
[378019992,1754669485559,-1805.08,0.00019593,2]
[378019993,1754669485570,-2223.45,0.00019593,2]
[378019994,1754669485580,-6174.0,0.00019593,2]
[378019995,1754669485590,-2054.29,0.00019593,2]
[378019996,1754669485600,-1472.26,0.00019593,2]
[378019997,1754669485610,-1850.46,0.00019593,2]
[378019998,1754669485620,-494.97,0.00019593,2]
[378019999,1754669485630,-3935.11,0.00019593,2]
[378020000,1754669485640,-400.0,0.00019593,2]
[378020001,1754669485649,-2515.89,0.00019593,2]
[378020002,1754669485659,-1608.52,0.00019593,2]
[378020003,1754669485668,-1303.48,0.00019593,2]
[378020004,1754669485677,-4223.69,0.00019593,2]
[378020005,1754669485687,-1741.72,0.00019593,2]
[378020006,1754669485699,-2410.98,0.00019593,2]
[378020007,1754669485710,-3140.44,0.00019593,2]
[378020008,1754669485720,-2021.3,0.00019593,2]
[378020009,1754669485730,-491.68,0.00019593,2]
[378020010,1754669485741,-228.5,0.00019645,2]
[378020011,1754669485750,-277.35679052,0.00019646,2]
[378020012,1754669485759,-160.0,0.00019656,2]
[378020013,1754669485768,-168.0,0.00019661,2]
[378020014,1754669485780,-1650.0,0.00019696,2]
[378020015,1754669485790,-189.46591014,0.00019705,2]
[378020016,1754669485800,-3421.47323467,0.00019721,2]
[378020017,1754669485809,-156.587,0.00019726,2]
[378020018,1754669485819,-6934.8520227,0.00019752,2]
[378020019,1754669485828,-151.0,0.00019754,2]
[378020020,1754669485837,-151.0,0.00019754,2]
[378020021,1754669485847,-8937.7341614,0.00019754,2]
[378020022,1754669485857,-843.925428,0.00019754,2]
[378020023,1754669485867,-39709.4344255,0.00019754,2]
[378020024,1754669485877,-65755.61079331,0.00019754,2]
[378020025,1754669486379,-748.26893567,0.00019754,2]
[378020026,1754669486391,-4276.8926,0.00019754,2]
[378020027,1754669486403,-3082.5,0.00019754,2]
[378020028,1754669486414,-3370.39852,0.00019754,2]
[378020029,1754669486429,-291.04891274,0.00019754,2]
[378020030,1754669487153,-875.49848826,0.00018288,2]
[378020031,1754669487163,-400.0,0.00018395,2]
[378020032,1754669487173,-400.0,0.00018395,2]
[378020033,1754669487184,-405.75190878,0.00018396,2]
[378020034,1754669487193,-778.04869637,0.00018669,2]
[378020035,1754669487204,-343.54130363,0.00018669,2]
[378020036,1754669487214,-400.0,0.00018669,2]
[378020037,1754669487223,-400.0,0.00018669,2]
[378020038,1754669487232,-400.0,0.00018671,2]
[378020039,1754669487241,-1121.59,0.00018943,2]
[378020040,1754669487252,-400.0,0.00018943,2]
[378020041,1754669487261,-407.41325613,0.00018943,2]
[378020042,1754669487271,-400.0,0.00019217,2]
[378020043,1754669487280,-556.821769,0.00019217,2]
[378020044,1754669487315,-564.768231,0.00019217,2]
[378020045,1754669487326,-1121.59,0.00019491,2]
[378020046,1754669487336,-400.0,0.00019491,2]
[378020047,1754669487345,-151.0,0.00019497,2]
[378020048,1754669487355,-1561.641769,0.00019754,2]
[378020049,1754669487382,-29728.39093658,0.00019754,2]
[378020050,1754669487392,-228.5,0.00019755,2]
[378020051,1754669487401,-315.0,0.00019757,2]
[378020052,1754669487411,-355.28,0.00019764,2]
[378020053,1754669487420,-589.79,0.00019765,2]
[378020054,1754669487429,-437.48,0.00019765,2]
[378020055,1754669487439,-400.0,0.00019765,2]
[378020056,1754669487448,-778.37,0.00019765,2]
[378020057,1754669487459,-1040.75,0.00019765,2]
[378020058,1754669487679,-400.0,0.00019765,2]
[378020059,1754669487690,-400.0,0.00019765,2]
[378020060,1754669487705,-582.38,0.00019765,2]
[378020061,1754669487715,-832.82,0.00019765,2]
[378020062,1754669487725,-400.0,0.00019765,2]
[378020063,1754669487734,-730.78,0.00019765,2]
[378020064,1754669487745,-978.87,0.00019765,2]
[378020065,1754669487754,-859.46,0.00019765,2]
[378020066,1754669487763,-1294.52,0.00019765,2]
[378020067,1754669487773,-400.0,0.00019765,2]
[378020068,1754669487785,-400.0,0.00019765,2]
[378020069,1754669487795,-1018.54,0.00019765,2]
[378020070,1754669487804,-595.29,0.00019765,2]
[378020071,1754669487814,-670.33,0.00019765,2]
[378020072,1754669487824,-400.0,0.00019765,2]
[378020073,1754669487833,-400.0,0.00019765,2]
[378020074,1754669487844,-410.61,0.00019765,2]
[378020075,1754669487853,-1685.44,0.00019765,2]
[378020076,1754669487863,-504.11,0.00019765,2]
[378020077,1754669487873,-400.07,0.00019765,2]
[378020078,1754669487884,-3038.84067911,0.00019765,2]
[378020079,1754669489240,-400.0,0.00018395,2]